Cogmind - Beta 13 @@@ ROGUE MODE // 2024.04.21 @ 19:52:18 Player: Cwaftwer Result: Destroyed by G-34 Mercenary with Small Laser Performance ------------- Evolutions (1) 500 Regions Visited (3) 600 Robots Destroyed (9) 45 Value Destroyed (374) 374 Prototype IDs (4) 80 Alien Tech Used (0) 0 Bonus (200) 200 TOTAL SCORE: 1799 Bonus ------- Pacifist 200 Cogmind --------- Core Integrity 0/400 Matter 300/300 Energy 95/100 System Corruption 0% Temperature Cool (6) Movement Flying (32) Location -9/Storage Parts ------- > --- POWER (1) -------- (None) > --- PROPULSION (2) --- VTOL Module VTOL Module > --- UTILITY (4) ------ Signal Interpreter Utility Shielding > --- WEAPON (2) ------- Advanced Beam Cannon Flail > --- INVENTORY (5) ---- VTOL Module VTOL Module Advanced Beam Cannon Flail Peak State ------------ > --- POWER ------------ (None) > --- PROPULSION ------- VTOL Module VTOL Module > --- UTILITY ---------- Signal Interpreter Utility Shielding Light Armor Plating Drone Bay > --- WEAPON ----------- Flail > --- INVENTORY -------- VTOL Module VTOL Module Advanced Beam Cannon Advanced Beam Cannon [Rating: 15] Favorites ----------- Power Ion Engine Engine Ion Engine Propulsion VTOL Module Flight Unit VTOL Module Utility Utility Shielding Device Drone Bay Processor Signal Interpreter Protection Utility Shielding Weapon Flail Energy Cannon Advanced Beam Cannon Impact Weapon Flail Build | -11 -10 -9 -9 ------- Run | Yrd Mat Mat Sto Slots Evolved 2 | . . 2 . Power . | . . . . Propulsion . | . . . . Utility 2 | . . 2 . Weapon . | . . . . Parts Attached 15 | . 2 . 13 Power 2 | . . . 2 Engine 2 | . . . 2 Core . | . . . . Reactor . | . . . . Propulsion 3 | . . . 3 Treads . | . . . . Leg . | . . . . Wheel . | . . . . Hover . | . . . . Flight 3 | . . . 3 Utility 4 | . 2 . 2 Device 1 | . . . 1 Storage . | . . . . Processor 1 | . 1 . . Hackware . | . . . . Protection 2 | . 1 . 1 Artifact . | . . . . Weapon 6 | . . . 6 Energy Gun . | . . . . Energy Cannon 3 | . . . 3 Ballistic Gun . | . . . . Ballistic Cannon . | . . . . Launcher . | . . . . Special Weapon . | . . . . Impact Weapon 3 | . . . 3 Slashing Weapon . | . . . . Piercing Weapon . | . . . . Special Melee Weapon . | . . . . Unidentified Prototypes . | . . . . Parts Lost 4 | . . . 4 Power 1 | . . . 1 Propulsion 1 | . . . 1 Utility 1 | . . . 1 Weapon 1 | . . . 1 Highest Loss Streak 2 | . . . 2 To Critical Strikes . | . . . . Average Slot Usage (%) 38 | . 20 22 55 Flight 5 | . . . 9 Device 1 | . . . 3 Processor 10 | . 9 11 11 Protection 12 | . 10 11 14 Energy Cannon 1 | . . . 3 Impact Weapon 5 | . . . 11 Naked Turns 56 | . 56 . . Heaviest Build 12 | . 1 1 12 Greatest Support 8 | 3 3 3 8 Greatest Overweight (x) 1 | . . . 1 Average Overweight (x) . | . . . . Largest Inventory Capacity 5 | 5 5 5 5 Average Capacity 5 | 5 5 5 5 Most Carried 5 | . 1 2 5 Average Carried 1 | . . . 2 Final Capacity 5 | 5 5 5 5 Final Carried 4 | . . 2 4 Class Distribution -------------------- 88% | Mutant 11% | Sprinter Dominant Class ---------------- Mutant | -10/Materials Mutant | -9/Materials Mutant | -9/Storage Resources | -11 -10 -9 -9 ----------- Run | Yrd Mat Mat Sto Matter Collected 330 | 200 . . 130 Remotely . | . . . . Salvage Created 407 | . . . 407 Parts 11 | . . . 11 Haulers Intercepted . | . . . . Recyclers Shooed . | . . . . Parts Field Recycled . | . . . . Retrieved Matter . | . . . . Parts Self-Destructed . | . . . . Prevented . | . . . . Kills | -11 -10 -9 -9 ------- Run | Yrd Mat Mat Sto Combat Hostiles Destroyed 9 | . . . 9 Melee 2 | . . . 2 Cannons 1 | . . . 1 Classes Destroyed 2 | . . . 2 Grunt 4 | . . . 4 Sentry 5 | . . . 5 Best Kill Streak 6 | . . . 6 Combat Bots Only 6 | . . . 6 Max Kills in Single Turn 1 | . . . 1 Gunslinging . | . . . . Exploded . | . . . . Melee 1 | . . . 1 Uniques/NPCs Destroyed . | . . . . Combat | -11 -10 -9 -9 -------- Run | Yrd Mat Mat Sto Hostile Shots Fired 82 | . 4 2 76 Missed 12 | . 1 1 10 Damage Taken 1007 | . 39 12 956 Core 441 | . 39 12 390 Absorbed by Shields . | . . . . Redirected to Shielding 33 | . . . 33 Core Remaining (%) 92 | 100 84 . . Volleys Fired 10 | . . . 10 Largest 1 | . . . 1 Hottest 68 | . . . 68 Shots Fired 10 | . . . 10 Gun . | . . . . Cannon 10 | . . . 10 Launcher . | . . . . Special . | . . . . Kinetic . | . . . . Thermal 10 | . . . 10 Explosive . | . . . . Electromagnetic . | . . . . Robot Hit Streak 9 | . . . 9 Robot Miss Streak 1 | . . . 1 Penetration Max . | . . . . Secondary Targets . | . . . . Shots Hit Robots 36 | . . . 36 Core Hits 3 | . . . 3 Critical Kills . | . . . . Critical Parts Destroyed 6 | . . . 6 Critical Strikes 6 | . . . 6 Smash 6 | . . . 6 Melee Attacks 33 | . . . 33 Impact 33 | . . . 33 Slashing . | . . . . Piercing . | . . . . Sneak Attacks . | . . . . Combat Hostiles . | . . . . Follow-up Attacks . | . . . . Damage Inflicted 1086 | . 13 . 1073 Guns . | . . . . Cannons 183 | . . . 183 Explosions . | . . . . Melee 890 | . . . 890 Ramming 13 | . 13 . . Kinetic . | . . . . Thermal 183 | . . . 183 Explosive . | . . . . Electromagnetic . | . . . . Impact 890 | . . . 890 Slashing . | . . . . Piercing . | . . . . Highest Corruption . | . . . . Average Corruption . | . . . . Corruption Purged . | . . . . Corruption Blocked . | . . . . Overload Shots . | . . . . Overflow Damage 237 | . . . 237 Projectiles . | . . . . Explosions . | . . . . Melee 237 | . . . 237 Knockbacks 5 | . . . 5 Impact 4 | . . . 4 Kinetic . | . . . . Secondary 1 | . . . 1 Self-Inflicted Damage 6 | . 6 . . Shots . | . . . . Rammed 1 | . 1 . . Targets Rammed 1 | . 1 . . Kicked . | . . . . Crushed . | . . . . Highest Temperature 313 | . . . 313 Average Temperature 152 | . . . 152 Received Heat Transfer 390 | . 18 6 366 Effects 1 | . . . 1 Energy Bleed 1 | . . . 1 Siege Activations . | . . . . Robots Corrupted . | . . . . Combat Hostiles . | . . . . Parts Fried 3 | . . . 3 Impact Corruptions 9 | . . . 9 Robots Melted 1 | . . . 1 Combat Hostiles 1 | . . . 1 Parts Melted 2 | . . . 2 Heat Transferred 333 | . . . 333 Parts Sabotaged . | . . . . Parts Stolen . | . . . . Parts Stripped . | . . . . Power Chain Reactions . | . . . . Alert | -11 -10 -9 -9 ------- Run | Yrd Mat Mat Sto Peak Influence 384 | . 72 59 384 Initial 29 | . . 29 24 Average 107 | . 12 39 199 Maximum Alert Level 1 | . . . 1 Low Security (%) 68 | 100 100 100 37 Level 1 31 | . . . 62 Level 2 . | . . . . Level 3 . | . . . . Level 4 . | . . . . Level 5 . | . . . . High Security . | . . . . Max Security . | . . . . Squads Dispatched 3 | . 2 1 . Investigation 2 | . 2 . . Extermination . | . . . . Reinforcement 1 | . . 1 . Assault . | . . . . Garrison . | . . . . Intercept . | . . . . Searches Triggered . | . . . . Construction Impeded . | . . . . Haulers Reinforced . | . . . . Active Scanning Responses . | . . . . Cargo Convoy Interrupts . | . . . . Stealth | -11 -10 -9 -9 --------- Run | Yrd Mat Mat Sto Distress Signals . | . . . . Communications Jammed . | . . . . Distress Signals . | . . . . Times Spotted 20 | . 5 3 12 Peak Tracking Total 6 | . 6 2 6 Tactical Retreats 6 | . 1 . 5 Traps | -11 -10 -9 -9 ------- Run | Yrd Mat Mat Sto Traps Triggered 2 | . 1 . 1 Indirectly . | . . . . Trap Hack Attempts . | . . . . Triggered . | . . . . Disarmed . | . . . . Reprogrammed . | . . . . Reused . | . . . . Traps Extracted . | . . . . Installed . | . . . . Triggered . | . . . . Machines | -11 -10 -9 -9 ---------- Run | Yrd Mat Mat Sto Machines Disabled . | . . . . Max in Single Turn . | . . . . Machines Repaired . | . . . . Machines Dismantled . | . . . . Machines Sabotaged . | . . . . Overloaded Fab Kills . | . . . . Hacking | -11 -10 -9 -9 --------- Run | Yrd Mat Mat Sto Machines Accessed 5 | . 2 1 2 Terminals 5 | . 2 1 2 Fabricators . | . . . . Repair Stations . | . . . . Recycling Units . | . . . . Scanalyzers . | . . . . Garrison Access . | . . . . Total Hacks 15 | . 9 1 5 Successful 6 | . 5 . 1 Failed 9 | . 4 1 4 Catastrophic 3 | . 2 1 . Database Lockouts . | . . . . Manual . | . . . . Terminals 15 | . 9 1 5 Fabricators . | . . . . Repair Stations . | . . . . Recycling Units . | . . . . Scanalyzers . | . . . . Garrison Access . | . . . . Terminal Hacks 6 | . 5 . 1 Robot Analysis 1 | . 1 . . Prototype ID Bank 2 | . 2 . . Open Door 1 | . . . 1 Branch Access Points 1 | . 1 . . Emergency Access Points 1 | . 1 . . Fabricator Hacks . | . . . . Repair Station Hacks . | . . . . Recycling Unit Hacks . | . . . . Scanalyzer . | . . . . Garrison Access Hacks . | . . . . Unauthorized Hacks . | . . . . Terminals . | . . . . Fabricators . | . . . . Repair Stations . | . . . . Recycling Units . | . . . . Scanalyzers . | . . . . Garrison Access . | . . . . Data Cores Recovered . | . . . . Used . | . . . . Hacking Detections 4 | . 2 1 1 Full Trace Events 1 | . 1 . . Feedback Events . | . . . . Feedback Blocked . | . . . . Robot Schematics Acquired . | . . . . Robots Built . | . . . . Authchips . | . . . . Time . | . . . . Total Robot Build Rating . | . . . . Part Schematics Acquired . | . . . . Parts Built . | . . . . Authchips . | . . . . Time . | . . . . Total Part Build Rating . | . . . . Parts Repaired . | . . . . Time . | . . . . Parts Recycled . | . . . . Recycled Matter . | . . . . Retrieved Matter . | . . . . Retrieved Components . | . . . . Parts Scanalyzed . | . . . . Part Schematics Acquired . | . . . . Parts Damaged . | . . . . Bothacking | -11 -10 -9 -9 ------------ Run | Yrd Mat Mat Sto Used RIF Installer . | . . . . Robots Hacked . | . . . . Non-combat . | . . . . Combat . | . . . . Robot Hacks Applied . | . . . . Relay Couplers Released . | . . . . Fabnet Peak Effective % . | . . . . Robots Rewired . | . . . . Allies Hacked . | . . . . Hacks Repelled . | . . . . Allies | -11 -10 -9 -9 -------- Run | Yrd Mat Mat Sto Total Allies . | . . . . Largest Group . | . . . . Highest-Rated Group . | . . . . Highest-Rated Ally . | . . . . Total Orders . | . . . . Ally Attacks . | . . . . Total Damage . | . . . . Kills . | . . . . Allies Corrupted . | . . . . Allies Melted . | . . . . Intel | -11 -10 -9 -9 ------- Run | Yrd Mat Mat Sto Robot Analysis Total 1 | . 1 . . Derelict Logs Recovered . | . . . . Drone Launches 2 | . . . 2 Drone Recoveries . | . . . . Exploration | -11 -10 -9 -9 ------------- Run | Yrd Mat Mat Sto Turns Passed 586 | 15 243 35 293 Spaces Moved 537 | 30 227 65 215 Core 438 | 30 227 65 116 Treads . | . . . . Legs . | . . . . Wheels . | . . . . Hover . | . . . . Flight 99 | . . . 99 Fastest Speed 32 | 50 50 50 32 Average Speed 53 | 50 50 50 58 Slowest Speed 112 | 50 50 50 112 Overloaded Moves . | . . . . Propulsion Burnouts . | . . . . Robots Hopped . | . . . . Cave-ins Triggered . | . . . . Exploration Rate (%) 16 | 3 31 9 22 Regions Visited 3 Branch Regions 1 Pre-discovered Areas . | . . . . Known Exits Taken 2 | . 1 1 . Unknown Exits Taken 1 | 1 . . . Scrap Searched . | . . . . Spaces Dug . | . . . . Terrain Destroyed . | . . . . Melee . | . . . . Projectile . | . . . . AOE . | . . . . Terrain Rammed . | . . . . Walls Destroyed . | . . . . Machines Disabled . | . . . . Actions | -11 -10 -9 -9 --------- Run | Yrd Mat Mat Sto Total 776 | 29 355 66 326 Wait 162 | . 124 . 38 Move 534 | 29 226 64 215 Hop . | . . . . Pick Up 16 | . 2 2 12 Fast Attach . | . . . . Attach 14 | . 2 . 12 Detach 3 | . . . 3 Swap 1 | . . . 1 Drop 2 | . . . 2 Fire 10 | . . . 10 Melee 33 | . . . 33 Ram 1 | . 1 . . Kick . | . . . . Crush . | . . . . Escape Stasis . | . . . . Rewire . | . . . . Trap . | . . . . Miscellaneous . | . . . . Route ------- -11/Scrapyard -10/Materials (discovered 2 exits: *Mat / *Min) -9/Materials -9/Storage History --------- Turn | Location | Event 5 | -11/Scrapyard | Discovered new exit (range 15) 16 | -11/Scrapyard | Entered Materials 29 | -10/Materials | Identified exit to Mines 255 | -10/Materials | Discovered new exit (range 7) 258 | -10/Materials | Identified exit to Materials 259 | -10/Materials | Entered another Materials area 259 | -9/Materials | Evolved 2 slots: Utility x2 259 | -9/Materials | Discovered new exit (range 16) 277 | -9/Materials | Identified exit to Storage 294 | -9/Materials | Entered Storage 317 | -9/Storage | Build established: Mutant 381 | -9/Storage | Core integrity fell below 50% 402 | -9/Storage | Core integrity fell below 20% 587 | -9/Storage | Destroyed by G-34 Mercenary with Small Laser Last Messages --------------- Y-45 Defender suffers critical hit (Smash). Destroyed Heat Sink. Y-45 Defender system corrupted by crushing effect. Y-45 Defender system terminally corrupted. Imp. Ion Engine fried. Heat Sink fried. Destroyed Heat Sink. G-34 Mercenary system corrupted by crushing effect. G-34 Mercenary misfires. G-34 Mercenary knocked back. G-34 Mercenary destroyed. R-06 Scavenger collects Corrupted Lgt. Treads. Acquired 25 matter. Acquired VTOL Module. G-34 Mercenary suffers critical hit (Smash). Destroyed Ion Engine. G-34 Mercenary system corrupted by crushing effect. Map ----- +----------------------------------------------------+ | # ???????????????????????????? | | # #####??????????????????????? | | # # ##?????????????????????? | | # """ # #?????????????????????? | | # """ #??????????????????????? | | # """ ^#??????????????????????? | | # #??????????????????????? | | # """ + #??????????????????????? | | # """ # #??????????????????????? | | # """ # #??????????????????????? | | # # #??????????????????????? | | ######## ####????????"#?????????? | | ?###### #T#######" "####??????? | | ?#]]"[# ^ | | ?#][ %+% ^ | | ?# "=#= | | ?####T# #################### ? | | ????##### ### #?????????????? | | ????????# ### ]#?????????????? | | ????????# / ]#?????????????? | | ????????# ### #?????????????? | | ????????# #?# ! #???########??? | | ????????# #?# #??##T# !!!#??? | | ????????# #?# #??# #??? | | ?########g### #??# #!!!!#??? | | ?# @## % #??# %######??? | | ?# #####+########+#######?? | | ?# # % #?? | | ?# + #?? | | ?# # % #?? | | ?# = ###+#+#########+######?? | | ?# # ## #??? | | ?# # """ """ ## ##??? | | ?##### ##### """ """ ## #???? | | ?????###???# """ """ ## /! #???? | | ???????????# ## // #???? | | ???????????############ / #???? | | ??????????????????????#########???? | | ??????????????????????????????????? | | ??????????????????????????????????? | | ??????????????????????????????????? | | ??????????????????????????????????? | | ??????????????????????????????????? | | ??????????????????????????????????? | | ??????????????????????????????????? | | ??????????????????????????????????? | | ??????????????????????????????????? | | ??????????????????????????????????? | | ??????????????????????????????????? | | ??????????????????????????????????? | +----------------------------------------------------+ Best States ------------- Heat Dissipation 28 Energy Generation 10 Energy Capacity 250 Matter Stores 300 Matter Capacity 300 Sight Range 16 Terrain Scan Density 10 Armor Coverage 150 Utility Shielding 33 Evasion (%) 63 Item Schematics ----------------- None Robot Schematics ------------------ None Fabricated ------------ Nothing Alien Tech Used ----------------- None Achievements -------------- None Challenges ------------ None Game ------ Seed StealthGaussRedistributor Manual? 0 Play Time 00:09:03 Cumulative 25.9 hours Start 2024.04.21 @ 19:44:13 End 2024.04.21 @ 19:52:18 Sessions 1 Manual Loads 0 Difficulty Rogue Special Mode None Game No. 38 Rogue 37 Adventurer 1 Explorer 0 Win Type - Total 0 Types 0/0/0/0/0/0/0/0/0 Lore% 23 Gallery% 30 Achievement% 25 Wizard Run 0 Options --------- Layout 1 ASCII 0 Keyboard 0 Movement Mouse Keybinds 0 Fullscreen 1 Font 24/Smallcaps Map View 50x40 Zoom Use 0% Tactical HUD 0 Map Filters NONE Filters NONE Steam 1 RUN: 48aa07b9-8fd8-47f6-98da-734cf0f0b043